Cogmind - Beta 15 @@@ ROGUE MODE // 2025.08.16 @ 20:17:15 Player: Dwarfinator Result: Destroyed by as-65807 with Assembled Blade Performance ------------- Evolutions (0) 0 Regions Visited (2) 400 Robots Destroyed (28) 140 Value Destroyed (580) 580 Prototype IDs (0) 0 Alien Tech Used (0) 0 Bonus (0) 0 TOTAL SCORE: 1120 Bonus ------- None Cogmind --------- Core Integrity 0/250 Matter 270/300 Energy 199/250 System Corruption 0% Temperature Cool (77) Movement Treading (160) Location -10/Mines Parts ------- > --- POWER (1) -------- Ion Engine > --- PROPULSION (2) --- Light Treads Light Treads > --- UTILITY (2) ------ Large Storage Unit Seismic Detector > --- WEAPON (2) ------- Heavy EM Pulse Gun Grenade Launcher > --- INVENTORY (15) --- Light Treads Light Treads Light Treads Heat Sink High-capacity Matter Pod (25) Beam Cannon Assault Rifle Assault Rifle Light Assault Rifle Light Assault Rifle Light Assault Rifle Light Assault Rifle Datajack Mining Laser Peak State ------------ > --- POWER ------------ Ion Engine > --- PROPULSION ------- Light Treads Light Treads > --- UTILITY ---------- Large Storage Unit Seismic Detector > --- WEAPON ----------- Heavy EM Pulse Gun Heavy EM Pulse Gun > --- INVENTORY -------- Ion Engine Aluminum Leg Aluminum Leg Heat Sink Large Battery Large Matter Pod Seismic Detector Beam Cannon Assault Rifle Light Assault Rifle Light Assault Rifle Light Assault Rifle Light Assault Rifle Datajack Mining Laser [Rating: 10] Favorites ----------- Power Ion Engine Engine Ion Engine Propulsion Light Treads Treads Light Treads Leg Aluminum Leg Utility Large Storage Unit Device Seismic Detector Storage Large Storage Unit Weapon Heavy EM Pulse Gun Energy Gun Heavy EM Pulse Gun Energy Cannon Beam Cannon Ballistic Gun Assault Rifle Launcher Grenade Launcher Special Weapon Mining Laser Build | -11 -10 -10 ------- Run | Yrd Mat Min Slots Evolved . | . . . Power . | . . . Propulsion . | . . . Utility . | . . . Weapon . | . . . Parts Attached 19 | 7 12 . Power 3 | 1 2 . Engine 3 | 1 2 . Core . | . . . Reactor . | . . . Propulsion 3 | 2 1 . Treads 2 | 2 . . Leg 1 | . 1 . Wheel . | . . . Hover . | . . . Flight . | . . . Utility 5 | 2 3 . Device 3 | 1 2 . Storage 2 | 1 1 . Processor . | . . . Hackware . | . . . Protection . | . . . Artifact . | . . . Weapon 8 | 2 6 . Energy Gun 3 | 1 2 . Energy Cannon 1 | . 1 . Ballistic Gun 2 | 1 1 . Ballistic Cannon . | . . . Launcher 1 | . 1 . Special Weapon 1 | . 1 . Impact Weapon . | . . . Slashing Weapon . | . . . Piercing Weapon . | . . . Special Melee Weapon . | . . . Unidentified Prototypes . | . . . Parts Lost 1 | . . 1 Power . | . . . Propulsion . | . . . Utility . | . . . Weapon 1 | . . 1 Highest Loss Streak 1 | . . 1 To Critical Strikes . | . . . Average Backups 13 | 3 13 14 Power 1 | . 1 . Propulsion 2 | 1 2 3 Utility 3 | . 3 2 Weapon 5 | . 6 8 Tool/Special . | . . . Unused Backups 20 | 1 8 11 Power 1 | . 1 . Propulsion 5 | . 2 3 Utility 6 | 1 4 1 Weapon 7 | . 1 6 Tool/Special 1 | . . 1 Average Slot Usage (%) 100 | . 100 100 Engine 14 | . 14 14 Treads 27 | . 27 28 Device 14 | . 14 14 Storage 14 | . 14 14 Energy Gun 10 | . 8 26 Energy Cannon 8 | . 8 . Ballistic Gun 8 | . 8 . Special Weapon 1 | . 1 . Peak Build Rating 10 | 7 10 10 Average Rating 8 | 5 8 9 On Entrance 5 | . 7 9 Naked Turns . | . . . Heaviest Build 32 | 12 32 32 Greatest Support 40 | 40 40 40 Greatest Overweight (x) . | . . . Average Overweight (x) . | . . . Largest Inventory Capacity 15 | 8 15 15 Average Capacity 14 | 7 14 15 Most Carried 15 | 6 15 15 Average Carried 13 | 4 13 14 Final Capacity 15 | 8 15 15 Final Carried 15 | 6 15 14 Class Distribution -------------------- 100% | Mutant Dominant Class ---------------- Mutant | -10/Materials Mutant | -10/Mines Resources | -11 -10 -10 ----------- Run | Yrd Mat Min Matter Collected 945 | 239 656 50 Remotely . | . . . Salvage Created 913 | 88 825 . Parts 62 | 9 53 . Haulers Intercepted 2 | . 2 . Recyclers Shooed . | . . . Parts Field Recycled . | . . . Retrieved Matter . | . . . Parts Self-Destructed . | . . . Prevented . | . . . Kills | -11 -10 -10 ------- Run | Yrd Mat Min Combat Hostiles Destroyed 18 | . 18 . Guns 12 | . 12 . Cannons 5 | . 5 . AOE 1 | . 1 . Classes Destroyed 9 | 2 7 . Worker 1 | . 1 . Builder 1 | . 1 . Tunneler 3 | 2 1 . Hauler 2 | . 2 . Recycler 1 | 1 . . Mechanic 1 | . 1 . Watcher 1 | . 1 . Swarmer 6 | . 6 . Grunt 12 | . 12 . Best Kill Streak 3 | 1 3 . Combat Bots Only 3 | . 3 . Max Kills in Single Turn 1 | 1 1 . Gunslinging . | . . . Exploded 1 | . 1 . Melee . | . . . Uniques/NPCs Destroyed . | . . . Combat | -11 -10 -10 -------- Run | Yrd Mat Min Hostile Shots Fired 74 | . 63 11 Missed 25 | . 24 1 Hits 49 | . 39 10 Melee 4 | . . 4 Projectile 45 | . 39 6 AOE 3 | . . 3 Critical Strikes 1 | . . 1 Damage Taken 752 | . 453 299 Core 256 | . 112 144 Absorbed by Shields . | . . . Regen/Repaired (Parts) 98 | . 98 . Core Remaining (%) 100 | 100 . . Volleys Fired 92 | 11 76 5 Largest 2 | 2 2 2 Hottest 160 | 60 160 90 Shots Fired 172 | 18 145 9 Gun 109 | 18 83 8 Cannon 54 | . 54 . Launcher 1 | . . 1 Special 8 | . 8 . Kinetic 70 | 11 59 . Thermal 75 | 7 68 . Explosive 1 | . . 1 Electromagnetic 26 | . 18 8 Robot Hit Streak 11 | 3 11 8 Robot Miss Streak 4 | 2 4 3 Penetration Max . | . . . Secondary Targets . | . . . Shots Hit Robots 109 | 11 93 5 Core Hits 36 | 3 31 2 Critical Kills . | . . . Critical Parts Destroyed . | . . . Critical Strikes . | . . . Melee Attacks . | . . . Impact . | . . . Slashing . | . . . Piercing . | . . . Sneak Attacks . | . . . Combat Hostiles . | . . . Follow-up Attacks . | . . . Damage Inflicted 1758 | 135 1532 91 Guns 1123 | 135 919 69 Cannons 568 | . 568 . Explosions 67 | . 45 22 Melee . | . . . Ramming . | . . . Kinetic 670 | 79 591 . Thermal 736 | 56 680 . Explosive 22 | . . 22 Electromagnetic 330 | . 261 69 Impact . | . . . Slashing . | . . . Piercing . | . . . Highest Corruption . | . . . Average Corruption . | . . . Corruption Purged . | . . . Corruption Blocked . | . . . Overload Shots . | . . . Overflow Damage . | . . . Projectiles . | . . . Explosions . | . . . Melee . | . . . Knockbacks . | . . . Impact . | . . . Kinetic . | . . . Secondary . | . . . Self-Inflicted Damage 48 | . 37 11 Shots 2 | . 1 1 Rammed . | . . . Targets Rammed . | . . . Kicked . | . . . Crushed . | . . . Highest Temperature 228 | . 228 102 Average Temperature 51 | . 51 61 Received Heat Transfer 220 | . 180 40 Siege Activations . | . . . Martial Activations . | . . . Shielding Activations . | . . . Robots Disrupted . | . . . Combat Hostiles . | . . . Robots Corrupted . | . . . Combat Hostiles . | . . . Parts Fried . | . . . Impact Corruptions . | . . . Robots Melted . | . . . Combat Hostiles . | . . . Parts Melted 3 | . 3 . Heat Transferred 1559 | 125 1434 . Parts Sabotaged . | . . . Parts Stolen . | . . . Parts Stripped . | . . . Power Chain Reactions 1 | . 1 . Alert | -11 -10 -10 ------- Run | Yrd Mat Min Maximum Alert Level 1 | . 1 . Low Security (%) 90 | 100 89 100 Level 1 9 | . 10 . Level 2 . | . . . Level 3 . | . . . Level 4 . | . . . Level 5 . | . . . High Security . | . . . Max Security . | . . . Peak Influence 246 | 5 246 84 Initial 84 | . . 84 Average 81 | . 89 46 Influence Increases 696 | 15 676 5 Destroy 0b10 Robot/C 360 | . 360 . Destroy 0b10 Robot/NC 50 | 15 35 . Destroy Leader 86 | . 86 . Successful Hack 30 | . 30 . Select Force Hacks 30 | . 30 . Disable Machine 30 | . 30 . Destroy Structure 20 | . 15 5 Lose Combat Pursuer 90 | . 90 . Influence Decreases 691 | 15 460 216 Entered New Map 132 | . . 132 Time Decay 555 | 15 460 80 Lost Part 4 | . . 4 Squads Dispatched 4 | . 4 . Investigation 3 | . 3 . Extermination . | . . . Reinforcement 1 | . 1 . Assault . | . . . Garrison . | . . . Intercept . | . . . Searches Triggered . | . . . Construction Impeded . | . . . Haulers Reinforced . | . . . Active Scanning Responses . | . . . Cargo Convoy Interrupts . | . . . Stealth | -11 -10 -10 --------- Run | Yrd Mat Min Distress Signals 6 | . 6 . Communications Jammed . | . . . Distress Signals . | . . . Times Spotted 42 | . 35 7 Peak Tracking Total 7 | . 7 6 Tactical Retreats 4 | . 4 . Traps | -11 -10 -10 ------- Run | Yrd Mat Min Traps Triggered . | . . . Indirectly . | . . . Trap Hack Attempts . | . . . Triggered . | . . . Disarmed . | . . . Reprogrammed . | . . . Reused . | . . . Traps Extracted . | . . . Installed . | . . . Triggered . | . . . Machines | -11 -10 -10 ---------- Run | Yrd Mat Min Machines Disabled 2 | . 2 . Max in Single Turn 1 | . 1 . Machines Repaired . | . . . Machines Dismantled . | . . . Machines Sabotaged . | . . . Overloaded Fab Kills . | . . . Hacking | -11 -10 -10 --------- Run | Yrd Mat Min Machines Accessed 10 | . 10 . Terminals 7 | . 7 . Fabricators . | . . . Repair Stations 1 | . 1 . Recycling Units 2 | . 2 . Scanalyzers . | . . . Garrison Access . | . . . Total Hacks 34 | . 34 . Successful 17 | . 17 . Failed 17 | . 17 . Catastrophic 2 | . 2 . Database Lockouts . | . . . Manual 25 | . 25 . Terminals 27 | . 27 . Fabricators . | . . . Repair Stations 2 | . 2 . Recycling Units 5 | . 5 . Scanalyzers . | . . . Garrison Access . | . . . Terminal Hacks 5 | . 5 . Part Schematic 2 | . 2 . Robot Analysis 2 | . 2 . Hauler Manifests 1 | . 1 . Fabricator Hacks . | . . . Repair Station Hacks 2 | . 2 . Scan Component 1 | . 1 . Repair 1 | . 1 . Recycling Unit Hacks 2 | . 2 . Retrieve Components 2 | . 2 . Scanalyzer . | . . . Garrison Access Hacks . | . . . Unauthorized Hacks 8 | . 8 . Terminals 7 | . 7 . Botnet 2 | . 2 . Skim 5 | . 5 . Fabricators . | . . . Repair Stations . | . . . Recycling Units 1 | . 1 . Tunnel 1 | . 1 . Scanalyzers . | . . . Garrison Access . | . . . Data Cores Recovered . | . . . Used . | . . . Hacking Detections 10 | . 10 . Full Trace Events 1 | . 1 . Feedback Events . | . . . Feedback Blocked . | . . . Robot Schematics Acquired . | . . . Robots Built . | . . . Authchips . | . . . Time . | . . . Total Robot Build Rating . | . . . Part Schematics Acquired 2 | . 2 . Parts Built . | . . . Authchips . | . . . Time . | . . . Total Part Build Rating . | . . . Parts Repaired 1 | . 1 . Time 26 | . 26 . Parts Recycled . | . . . Recycled Matter . | . . . Retrieved Matter . | . . . Retrieved Components 7 | . 7 . Parts Scanalyzed . | . . . Part Schematics Acquired . | . . . Parts Damaged . | . . . Bothacking | -11 -10 -10 ------------ Run | Yrd Mat Min Used RIF Installer . | . . . Robots Hacked . | . . . Non-combat . | . . . Combat . | . . . Robot Hacks Applied . | . . . Relay Couplers Released . | . . . Fabnet Peak Effective % . | . . . Robots Rewired . | . . . Allies Hacked . | . . . Hacks Repelled . | . . . Allies | -11 -10 -10 -------- Run | Yrd Mat Min Total Allies . | . . . Largest Group . | . . . Highest-Rated Group . | . . . Highest-Rated Ally . | . . . Total Orders . | . . . Ally Attacks . | . . . Total Damage . | . . . Kills . | . . . Allies Corrupted . | . . . Allies Melted . | . . . Intel | -11 -10 -10 ------- Run | Yrd Mat Min Active Infowar (turns) 1878 | 45 1665 168 Seismic 1878 | 45 1665 168 Robot Analysis Total 2 | . 2 . Derelict Logs Recovered 1 | . . 1 Drone Launches . | . . . Drone Recoveries . | . . . Exploration | -11 -10 -10 ------------- Run | Yrd Mat Min Turns Passed 2244 | 119 1957 168 Spaces Moved 868 | 46 728 94 Core 3 | 3 . . Treads 865 | 43 728 94 Legs . | . . . Wheels . | . . . Hover . | . . . Flight . | . . . Fastest Speed 50 | 50 160 160 Average Speed 159 | 152 160 160 Slowest Speed 160 | 160 160 160 Overloaded Moves . | . . . Propulsion Burnouts . | . . . Robots Hopped . | . . . Potential Cave-ins . | . . . Cave-ins Triggered . | . . . Exploration Rate (%) 46 | 6 98 36 Regions Visited 2 Branch Regions 1 Pre-discovered Areas 1 | . 1 . Known Exits Taken . | . . . Unknown Exits Taken 2 | 1 1 . Scrap Searched 1 | . . 1 Spaces Dug 13 | . 7 6 Terrain Destroyed 18 | . 12 6 Melee . | . . . Projectile 8 | . 8 . AOE 10 | . 4 6 Terrain Rammed . | . . . Walls Destroyed . | . . . Machines Disabled . | . . . Actions | -11 -10 -10 --------- Run | Yrd Mat Min Total 1535 | 77 1356 102 Wait 482 | . 482 . Move 866 | 45 727 94 Hop . | . . . Pick Up 36 | 12 24 . Fast Attach 4 | 3 . 1 Attach 6 | 4 1 1 Detach . | . . . Swap 30 | . 29 1 Drop 19 | 2 17 . Fire 92 | 11 76 5 Melee . | . . . Ram . | . . . Kick . | . . . Crush . | . . . Escape Stasis . | . . . Rewire . | . . . Trap . | . . . Miscellaneous . | . . . Route ------- -11/Scrapyard -10/Materials (discovered 6 exits: *Mat x3 / [*Min x2] / Sub) -10/Mines (discovered 2 exits: Mat / Sub) History --------- Turn | Location | Event 25 | -11/Scrapyard | Discovered new exit (range 16) 120 | -11/Scrapyard | Entered Materials 264 | -10/Materials | Discovered new exit (range 15) 315 | -10/Materials | Build established: Mutant 367 | -10/Materials | Discovered new exit (range 14) 1195 | -10/Materials | Discovered new exit (range 13) 1628 | -10/Materials | Repaired Lgt. Treads 1830 | -10/Materials | Discovered new exit (range 15) 1905 | -10/Materials | Loaded intel: 7 trap records 1937 | -10/Materials | Identified exit to Subcaves 1975 | -10/Materials | Learned location of 2 exits from Subcaves 1976 | -10/Materials | Discovered new exit (range 10) 1980 | -10/Materials | Learned location of 2 exits from Mines 1993 | -10/Materials | Learned 2 Storage zone layouts 2017 | -10/Materials | Learned 2 Storage zone layouts 2049 | -10/Materials | Learned location of 3 exits from Materials 2077 | -10/Materials | Entered Mines 2078 | -10/Mines | Identified exit to Materials 2127 | -10/Mines | Learned Materials terminal intel 2173 | -10/Mines | Assembled infested the area 2178 | -10/Mines | Assisted by a Guerilla fighting off Assembled 2230 | -10/Mines | Core integrity fell below 50% 2243 | -10/Mines | Core integrity fell below 20% 2245 | -10/Mines | Destroyed by as-65807 with Assembled Blade Last Messages --------------- 02226_ Found Seismic Detector. 02226_ Found 58 Matter. 02226_ Found 50 Matter. 02227_ Acquired 50 matter. 02227_ C-30 ARC bursts open, deploying its payload. 02227_ D-53 Grenadier unfolds itself. 02229_ D-53 Grenadier IFF system glitched. 02230_ The unstable cave ceiling collapses. 02230_ T-07 Excavator is excavating. 02232_ The unstable cave ceiling collapses. 02233_ D-53 Grenadier destroyed. 02234_ The unstable cave ceiling collapses. 02234_ T-07 Excavator is excavating. 02234_ D-53 Grenadier destroyed. 02236_ The unstable cave ceiling collapses. 02238_ T-07 Excavator is excavating. 02240_ Lgt. Treads severed. 02241_ Hvy. EM Pulse Gun destroyed. 02241_ Acquired Lgt. Treads. 02245_ The unstable cave ceiling collapses. Map ----- +----------------------------------------------------+ | ?????????????????????????????????????????????? | | ?????????????????????????????????????????????? | | ?????????????????????????????????????????????? | | ?????????????????????????????????????????????? | | ?????????????????????????????????????????????? | | ?????????????????????????????????????????????? | | ????????????###??????????????????????????????? | | ??????????? ?????????????????????????????? | | ???????????? ?????????????????????????????? | | ????????????? ????????????????????????????? | | ?????????????# ????????????????????????????? | | ?????????????# ????????#??????????????????? | | ??????????????# ######? #??????????????????? | | ?????????????## ## #??????????????????? | | ?????????????? !%] *#??????????????????? | | ???????????????? != #%#??????????????????? | | ?????????????????# % *=*#####??????????????? | | ?????????????????# a !%aaaa%???????????????? | | ????????????????## #@ ##???????????????????? | | ????????????????# # # #???????????????????? | | ????????????????# # #???????????????????? | | ????????????????## ## #???????????????????? | | ???????# ####????## #######???????????????? | | ???????# #### #?## ##??????????????? | | ???????# #?# #??????????????? | | ?????????#### ##?# #??????????????? | | ????????????# ##??# #????###???????? | | ????????????## ##???# ##??## ##??????? | | ?????????????## ##?## #### #??????? | | ??????????????# ### ## ####???? | | ??????????????## #???? | | ???????????????# ## #?### | | ???????????????# ## ### | | ???????????????# ### ## ### ## | | ???????????????# #####?###### ### # | | ???????????????## #???????????# """ | | ????????????????###????????????## """ | | ????????????????????????????????## #### """ | | ?????????????????????????????????####??# | | ???????????????????????????????????????## | | ????????????????????????????????????????#### | | ???????????????????????????????????????????### | | ?????????????????????????????????????????????? | +----------------------------------------------------+ Best States ------------- Heat Dissipation 35 Energy Generation 10 Energy Capacity 250 Matter Stores 300 Matter Capacity 300 Sight Range 16 Terrain Scan Density 10 Evasion (%) 40 Recoil Reduction 2 Item Schematics ----------------- Huge Storage Unit | -10/Materials | Hacked Hcp. Storage Unit | -10/Materials | Hacked Robot Schematics ------------------ None Fabricated ------------ Nothing Repaired ---------- Lgt. Treads | 30% | -10/Materials Alien Tech Used ----------------- None Achievements -------------- None Challenges ------------ None Game ------ Seed FlyingLightpackGuard Manual? 0 Play Time 00:31:05 Cumulative 439.6 hours Start 2025.08.16 @ 19:47:35 End 2025.08.16 @ 20:17:15 Sessions 1 Manual Loads 0 Difficulty Rogue Special Mode None Game No. 53 Rogue 50 Adventurer 3 Explorer 0 Win Type - Total 16 Types 9/0/3/1/0/0/1/1/1/0 Lore% 75 Gallery% 81 Achievement% 89 Wizard Run 0 Options --------- Layout 0 ASCII 0 Keyboard 0 Movement Numpad Keybinds 0 Fullscreen 1 Font 18/SmallcapsGlow Map View 76x50 Zoom Use 0% Tactical HUD 1 Map Filters NONE Filters NONE Steam 1 RUN: 07cea155-aec1-4fdf-a8e4-99b3749ab4c5